bitfinex/quotes_ETHUSD_20240604
["timestamp","ask_amount","ask_price","bid_price","bid_amount"]
[1717525123957,2.4597,3816.7,3816.1,2.62042]
[1717525124162,2.4597,3816.7,3816.2,0.03728099]
[1717525124409,2.4597,3816.7,3816.1,2.62042]
[1717525124723,2.4597,3816.7,3816.3,0.03724555]
[1717525125003,2.4597,3816.7,3816.1,2.62042]
[1717525125162,2.4597,3816.7,3816.4,0.03721011]
[1717525125362,2.4597,3816.7,3816.1,2.62042]
[1717525125665,2.4597,3816.7,3816.2,0.03728099]
[1717525126248,2.4597,3816.7,3816.1,2.62042]
[1717525126579,2.4597,3816.7,3816.2,0.03735372]
[1717525126780,2.4597,3816.7,3816.1,2.62042]
[1717525127112,2.4597,3816.7,3816.3,0.03731828]
[1717525127317,2.4597,3816.7,3816.2,0.03735372]
[1717525127540,2.4597,3816.7,3816.1,2.62042]
[1717525127706,2.4597,3816.7,3816.3,0.03731828]
[1717525127899,0.783,3816.4,3816.2,0.03735372]
[1717525128260,0.783,3816.4,3816.3,0.03731828]
[1717525128396,0.783,3816.4,3816.1,2.62042]
[1717525128708,0.783,3816.4,3816.3,0.03731828]
[1717525128902,0.783,3816.4,3816.2,0.03735372]
[1717525129210,0.783,3816.4,3816.3,0.03731828]
[1717525129413,0.783,3816.4,3816.1,2.62042]
[1717525129634,0.783,3816.4,3816.3,0.03731828]
[1717525129817,0.783,3816.4,3816.1,2.62042]
[1717525130031,0.783,3816.4,3816.3,0.03731828]
[1717525130234,0.783,3816.4,3816.1,2.62042]
[1717525130399,0.783,3816.4,3816.3,0.03731828]
[1717525130599,0.783,3816.4,3816.1,2.62042]
[1717525130802,0.783,3816.4,3816.3,0.03731828]
[1717525131012,0.783,3816.4,3816.1,2.62042]
[1717525131235,0.783,3816.4,3816.3,0.03731828]
[1717525131550,0.783,3816.4,3816.1,2.62042]
[1717525131694,0.783,3816.4,3816.3,0.03731828]
[1717525131899,0.783,3816.4,3816.2,0.03735372]
[1717525132331,0.783,3816.4,3816.3,2.62033]
[1717525132713,0.783,3816.4,3816.3,2.65764828]
[1717525140332,0.783,3816.4,3816.3,0.03731828]
[1717525140530,3.51917,3816.4,3816.3,0.03731828]
[1717525140752,3.51917,3816.4,3815.7,0.55026624]
[1717525140753,3.1949,3816.4,3815.7,3.17096624]
[1717525141043,0.783,3815.8,3815.7,3.17096624]
[1717525142841,0.783,3816.0,3815.7,3.17096624]
[1717525143028,0.783,3816.2,3816.0,2.62049]
[1717525143948,7.3,3816.5,3816.3,2.62032]
[1717525144129,7.3,3816.5,3816.3,5.10152]
[1717525144536,0.783,3817.0,3816.5,2.62016]
[1717525145050,0.783,3816.8,3816.5,2.62016]
[1717525146434,0.783,3816.8,3816.6,0.03725624]
[1717525147028,2.2937,3816.7,3816.6,0.03725624]
[1717525147331,2.2937,3816.7,3816.2,2.62037]
[1717525147529,2.2937,3816.7,3816.6,0.03725624]
[1717525147738,3.0767,3816.7,3816.2,2.62037]
[1717525147969,2.3667,3817.0,3816.6,0.03725624]
[1717525148257,2.3418,3817.3,3816.7,2.62002]
[1717525148574,0.783,3817.1,3816.7,2.62002]
[1717525148917,0.783,3816.9,3816.7,2.62002]
[1717525149362,2.3418,3817.3,3816.7,2.62002]
[1717525149517,0.783,3817.0,3816.7,2.62002]
[1717525150650,0.783,3817.0,3816.8,0.03581957]
[1717525150974,0.783,3817.0,3816.7,2.62002]
[1717525151385,0.783,3817.0,3816.8,0.03581957]
[1717525151760,0.783,3817.0,3816.7,2.62002]
[1717525152075,0.783,3817.0,3816.8,0.03581957]
[1717525152379,0.783,3817.0,3816.7,2.62002]
[1717525152795,0.783,3817.0,3816.8,0.03581957]
[1717525152964,9.91956,3817.5,3816.9,2.61992]
[1717525153126,0.783,3817.0,3816.9,2.61992]
[1717525153437,0.783,3817.0,3816.5,2.62013]
[1717525153438,3.2788,3817.0,3816.5,2.62013]
[1717525153637,0.783,3816.7,3816.5,2.62013]
[1717525153855,2.4958,3817.0,3816.5,2.62013]
[1717525154043,0.783,3816.8,3816.5,2.62013]
[1717525157606,0.783,3817.0,3816.8,2.61999]
[1717525158466,2.4834,3817.3,3817.0,2.61985]
[1717525158705,0.783,3817.3,3817.0,2.61985]
[1717525158889,8.083,3817.5,3817.2,2.6197]
[1717525159238,2.4874,3817.9,3817.4,2.61956]
[1717525159436,0.783,3817.5,3817.4,2.61956]
[1717525162785,0.783,3817.5,3817.1,2.61974]
[1717525162953,0.783,3817.5,3816.8,0.261999]
[1717525163156,0.783,3817.5,3817.3,2.61963]
[1717525166091,0.783,3817.5,3817.4,0.03425343]
[1717525168698,2.4874,3817.9,3817.4,0.03425343]
[1717525169003,0.783,3817.7,3817.3,2.61963]
[1717525169392,2.4874,3817.9,3817.4,0.03394676]
[1717525169393,0.783,3817.5,3817.4,0.03394676]
[1717525171148,0.783,3817.7,3817.5,2.61949]
[1717525171385,0.783,3817.7,3817.6,0.03386961]
[1717525175441,1.11004,3817.7,3817.6,0.03386961]
[1717525175604,1.11004,3817.7,3817.2,2.6197]
[1717525175936,0.783,3817.3,3817.2,2.6197]
[1717525181009,0.783,3817.3,3817.2,2.65368915]
[1717525183636,0.783,3817.5,3817.2,2.65368915]
[1717525188410,0.783,3817.3,3817.2,2.65368915]
[1717525196026,0.783,3817.8,3817.4,2.61957]
[1717525196353,0.783,3817.8,3817.5,0.03272546]
[1717525196520,0.783,3817.6,3817.5,0.03272546]
[1717525200473,2.4874,3817.9,3817.6,2.61943]
[1717525200638,0.783,3817.7,3817.6,2.61943]
[1717525200842,0.783,3817.7,3817.6,2.65202522]
[1717525202482,8.083,3818.1,3817.6,2.72699774]
[1717525203847,8.083,3818.1,3817.9,2.61919]
[1717525204295,0.783,3818.4,3818.2,2.61899]
[1717525204629,0.783,3818.4,3818.3,0.03234735]
[1717525204832,0.783,3818.4,3818.2,2.61899]
[1717525205027,7.3,3818.7,3818.4,2.61883]
[1717525205458,7.3,3818.7,3818.6,2.61876]
[1717525205951,7.3,3818.7,3818.6,2.6508779]
[1717525207867,8.083,3818.7,3818.6,2.6508779]
[1717525208084,8.083,3818.7,3818.6,2.61876]
[1717525208978,0.783,3818.7,3818.6,2.61876]
[1717525209498,0.783,3818.7,3818.6,2.65063457]
[1717525210831,0.783,3818.9,3818.6,2.65063457]
[1717525211121,9.7825,3819.4,3818.8,2.61859]
[1717525211424,0.783,3819.1,3818.8,2.61859]
[1717525211800,0.783,3819.1,3818.9,0.03163884]
[1717525213913,0.783,3819.1,3818.8,2.61859]
[1717525214214,0.783,3818.9,3818.8,2.61859]
[1717525214389,0.783,3818.9,3818.5,2.61878]
[1717525214712,0.783,3818.7,3818.5,2.61878]
[1717525219718,0.783,3818.7,3818.2,2.61898]
[1717525219916,0.783,3818.5,3818.2,2.61898]
[1717525221316,0.783,3818.5,3818.4,2.61889]
[1717525221948,0.783,3818.7,3818.4,2.61889]
[1717525224338,0.783,3818.5,3818.4,2.61889]
[1717525226158,0.783,3818.5,3818.4,2.64944084]
[1717525227238,0.783,3818.7,3818.4,2.64944084]
[1717525228424,2.2895,3819.2,3818.6,2.6187]
[1717525228737,0.783,3818.8,3818.7,0.03041934]
[1717525231979,0.783,3818.8,3818.7,0.06332065]
[1717525239584,0.783,3818.8,3818.3,2.61891]
[1717525239799,0.783,3818.4,3818.3,2.61891]
[1717525240191,4.90785,3819.2,3818.6,2.61873]
[1717525240580,0.783,3818.7,3818.6,2.61873]
[1717525241254,0.783,3818.7,3818.6,2.67776917]
[1717525243747,2.2895,3819.2,3818.6,2.67776917]
[1717525243949,0.783,3818.7,3818.6,2.67776917]
[1717525244183,0.783,3818.7,3818.6,3.18837609]
[1717525246156,7.3,3819.3,3818.9,2.61854]
[1717525246358,0.783,3819.0,3818.9,2.61854]
[1717525247624,2.4331,3819.5,3818.9,2.61854]
[1717525247785,0.783,3819.0,3818.9,2.61854]
[1717525247987,0.783,3819.0,3818.9,2.93145469]
[1717525248221,0.783,3819.0,3818.9,2.98842244]
[1717525248525,0.783,3819.0,3818.9,2.67550775]
[1717525250889,7.3,3819.8,3819.3,2.61822]
[1717525251201,0.783,3819.4,3819.3,2.61822]
[1717525252815,0.783,3819.4,3819.0,2.61845]
[1717525253015,0.783,3819.1,3819.0,2.61845]
[1717525254703,3.2512,3819.1,3818.7,2.61864]
[1717525254923,0.783,3818.8,3818.7,2.61864]
[1717525255128,0.783,3818.8,3818.7,5.61864]
[1717525256192,0.783,3818.8,3818.7,5.67560131]
[1717525256831,0.783,3818.8,3818.7,2.67560131]
[1717525258232,0.783,3818.8,3818.7,0.05696131]
[1717525258621,0.783,3818.8,3818.4,2.61885]
[1717525258809,0.783,3818.5,3818.4,2.61885]
[1717525259000,0.783,3818.5,3818.4,5.61885]
[1717525261221,0.783,3818.5,3818.4,6.23576162]
[1717525261423,0.783,3818.7,3818.6,2.61873]
[1717525262945,0.783,3818.7,3818.4,3.0]
[1717525263144,0.783,3818.7,3818.5,2.61882]
[1717525264548,2.4682,3819.1,3818.5,2.61882]
[1717525264750,0.783,3818.7,3818.5,2.61882]
[1717525265746,0.783,3818.7,3818.6,0.561882]
[1717525266093,0.783,3818.7,3818.6,5.875982]
[1717525266246,0.783,3818.7,3818.6,6.42624824]
[1717525266669,7.3,3819.2,3818.6,6.42624824]
[1717525266871,7.3,3819.2,3818.6,5.875982]
[1717525267061,7.3,3819.2,3818.7,0.64262482]
[1717525267869,7.3,3819.2,3819.0,2.61846]
[1717525270487,2.3768,3819.5,3819.0,2.61846]
[1717525270692,2.4755,3819.7,3819.2,2.61829]
[1717525270877,0.783,3819.3,3819.2,2.61829]
[1717525271246,0.783,3819.3,3819.2,2.67313374]
[1717525271486,7.3,3819.8,3819.5,2.61813]
[1717525271673,0.783,3819.6,3819.5,2.61813]
[1717525276116,3.0,3820.9,3819.5,2.61813]
[1717525276117,7.3,3820.3,3819.5,3.0]
[1717525276398,7.3,3820.3,3819.9,2.4073]
[1717525276609,7.3,3820.3,3820.0,0.05434544]
[1717525277791,7.3,3820.3,3820.0,2.67208544]
[1717525277996,8.083,3820.3,3820.0,3.29495281]
[1717525278225,8.083,3820.3,3820.0,2.67208544]
[1717525279402,0.783,3820.3,3820.0,2.67208544]
[1717525280049,7.3,3820.9,3820.4,2.61747]
[1717525280254,2.61715,3821.0,3820.4,2.61747]
[1717525280455,0.783,3820.5,3820.4,2.61747]
[1717525280755,0.783,3820.5,3820.4,2.66937226]
[1717525281265,2.61715,3821.0,3820.4,2.66937226]
[1717525281453,0.783,3820.5,3820.4,2.66937226]
[1717525281700,0.783,3820.5,3820.4,2.61747]
[1717525285600,0.783,3820.5,3820.4,2.66937226]
[1717525291760,2.3481,3820.9,3820.7,2.61728]
[1717525292039,2.3458,3821.2,3820.8,0.04989862]
[1717525292319,0.783,3820.9,3820.8,0.04989862]
[1717525292477,0.783,3820.9,3820.7,2.61728]
[1717525293018,0.783,3820.9,3820.8,0.04982604]
[1717525293878,2.3458,3821.2,3820.9,2.61717]
[1717525294081,0.783,3821.0,3820.9,2.61717]
[1717525299872,2.3458,3821.2,3820.9,2.878887]
[1717525300066,7.3,3821.4,3821.3,2.61691]
[1717525300271,2.3627,3821.7,3821.3,2.61691]
[1717525300569,2.3627,3821.7,3821.6,2.6167]
[1717525300969,3.1457,3821.7,3821.6,2.6167]
[1717525301167,2.3627,3821.7,3821.6,2.6167]
[1717525301323,0.783,3821.7,3821.6,2.6167]
[1717525302668,2.3627,3822.0,3821.6,2.6167]
[1717525302974,7.3,3822.1,3821.6,2.87837]
[1717525303189,0.783,3821.9,3821.6,2.87837]
[1717525303692,7.3,3822.1,3821.8,2.61655]
[1717525304065,7.3,3822.1,3822.0,2.61643]
[1717525304445,7.3,3822.1,3822.0,2.66501399]
[1717525304668,8.083,3822.1,3822.0,2.66501399]
[1717525305891,10.5326,3822.1,3822.0,0.04858399]
[1717525306256,10.5326,3822.1,3821.6,2.61665]
[1717525306481,9.7496,3822.1,3821.6,2.61665]
[1717525306670,9.7496,3822.1,3821.7,0.04869258]
[1717525306872,0.783,3821.8,3821.7,0.04869258]
[1717525308762,2.4496,3822.1,3821.8,2.61656]
[1717525308975,0.783,3821.9,3821.8,2.61656]
[1717525309368,19.66,3822.5,3821.8,2.61656]
[1717525309567,0.783,3822.3,3822.0,2.6164]
[1717525309901,2.4375019,3822.6,3822.2,2.61629]
[1717525310096,0.783,3822.4,3822.2,2.61629]
[1717525310264,0.783,3822.4,3822.3,0.04663015]
[1717525310456,0.1281019,3822.6,3822.3,0.04663015]
[1717525310653,0.783,3822.4,3822.2,2.61629]
[1717525310855,0.783,3822.4,3822.2,2.90670125]
[1717525311460,0.783,3822.3,3822.2,2.90670125]
[1717525312059,0.783,3822.3,3822.2,2.61629]
[1717525315761,0.783,3822.3,3821.9,2.61649]
[1717525315963,0.783,3822.0,3821.6,2.61669]
[1717525316202,0.783,3821.8,3821.7,5.61663]
[1717525316415,0.783,3821.8,3821.7,5.66338389]
[1717525316594,2.2648,3822.2,3821.7,6.22972228]
[1717525317085,0.783,3822.0,3821.7,6.22972228]
[1717525317289,0.783,3822.1,3821.9,2.61645]
[1717525317677,0.783,3822.1,3822.0,0.04665791]
[1717525320272,0.783,3822.1,3821.6,2.61669]
[1717525320468,0.783,3821.9,3821.6,2.61669]
[1717525321496,2.4898,3822.5,3821.6,0.261669]
[1717525321711,0.1281019,3822.6,3822.1,2.61631]
[1717525322075,0.1281019,3822.6,3822.3,2.61616]
[1717525322282,0.1281019,3822.6,3822.3,4.86936]
[1717525323164,0.783,3822.5,3822.3,4.86936]
[1717525323391,0.783,3822.5,3822.3,2.61616]
[1717525324211,0.1281019,3822.6,3822.3,2.877776]
[1717525325102,0.783,3822.5,3822.3,2.877776]
[1717525325425,0.1281019,3822.6,3822.3,2.877776]
[1717525325426,0.1281019,3822.6,3822.5,2.61608]
[1717525327421,0.1281019,3822.6,3822.5,4.93418]
[1717525328821,0.1281019,3822.6,3822.5,2.61608]
[1717525329387,0.1281019,3822.6,3822.5,5.61608]
[1717525330024,22.0925,3823.3,3822.8,2.61586]
[1717525330225,2.4765199,3823.3,3822.8,2.61586]
[1717525330835,2.91137189,3823.3,3822.8,2.61586]
[1717525331599,2.4765199,3823.3,3822.8,2.61586]
[1717525331927,0.0440199,3823.3,3822.8,2.61586]
[1717525332915,0.0440199,3823.3,3823.1,2.61564]
[1717525334548,0.0440199,3823.3,3823.2,0.04569729]
[1717525339517,0.0440199,3823.3,3823.2,3.04569729]
[1717525339828,0.0440199,3823.3,3823.2,3.83833102]
[1717525347237,7.3,3823.8,3823.2,3.83833102]
[1717525347437,7.04370604,3823.8,3823.2,3.83833102]
[1717525348752,7.04370604,3823.8,3823.6,2.6153]
[1717525348956,0.1278532,3823.9,3823.6,2.6153]
[1717525349279,0.1278532,3823.9,3823.7,0.0435753]
[1717525349482,2.3883,3823.8,3823.6,2.6153]
[1717525349679,2.3883,3823.8,3823.7,0.0435753]
[1717525352065,2.3883,3823.8,3823.5,2.61537]
[1717525352274,2.3883,3823.8,3823.6,0.04361147]
[1717525352893,7.12713532,3823.8,3822.9,2.61577]
[1717525353044,7.12713532,3823.8,3823.1,2.61564]
[1717525353249,7.12713532,3823.8,3823.2,0.04375614]
[1717525355923,0.1278532,3823.9,3823.2,0.04375614]
[1717525356048,0.1278532,3823.9,3823.5,5.23078]
[1717525356833,0.1278532,3823.9,3823.8,0.04274693]
[1717525357099,0.1278532,3823.9,3823.8,3.0]
[1717525357423,0.1278532,3823.9,3823.8,0.04254352]
[1717525357699,0.1278532,3823.9,3823.8,3.26578035]
[1717525357862,0.1278532,3823.9,3823.8,3.30813467]
[1717525358687,0.1278532,3823.9,3823.8,3.04235432]
[1717525358887,0.1278532,3823.9,3823.7,2.61526]
[1717525358888,2.5973532,3823.9,3823.7,2.61526]
[1717525360050,0.1278532,3823.9,3823.7,2.61526]
[1717525360490,0.1278532,3823.9,3823.8,0.04229397]
[1717525360789,0.1278532,3823.9,3823.7,2.61526]
[1717525360994,0.1278532,3823.9,3823.8,0.261526]
[1717525361191,0.1278532,3823.9,3823.8,0.30376868]
[1717525362093,0.1278532,3823.9,3823.8,0.04224268]
[1717525362293,0.1278532,3823.9,3823.7,2.61526]
[1717525362668,0.1278532,3823.9,3823.8,0.04222381]
[1717525362852,0.1278532,3823.9,3823.7,2.61526]
[1717525363052,0.1278532,3823.9,3823.8,0.04222381]
[1717525363352,0.1278532,3823.9,3823.3,2.61552]
[1717525363551,1.872,3823.4,3823.3,2.61552]
[1717525366250,1.872,3823.8,3823.6,2.61529]
[1717525367401,1.872,3823.8,3822.5,9.07077743]
[1717525367402,1.872,3823.8,3823.2,2.61556]
[1717525367622,1.872,3823.3,3823.2,2.61556]
[1717525368963,1.872,3823.7,3823.6,2.61533]
[1717525371774,1.872,3823.7,3823.6,2.876863]
[1717525371970,0.1278532,3823.9,3823.6,2.876863]
[1717525376127,0.1278532,3823.9,3823.8,2.61519]
[1717525376538,0.1278532,3823.9,3823.8,2.65497717]
[1717525381415,0.1278532,3823.9,3823.8,0.03978717]
[1717525381623,0.56100852,3823.9,3823.8,0.03978717]
[1717525381919,0.56100852,3823.9,3823.3,2.61552]
[1717525382088,1.872,3823.4,3823.3,2.61552]
[1717525382291,2.2766,3823.3,3822.7,2.61591]
[1717525382493,2.2766,3823.3,3822.9,2.61579]
[1717525382732,1.872,3823.0,3822.9,2.61579]
[1717525382937,1.872,3823.0,3822.6,2.616]
[1717525383993,1.872,3823.0,3822.3,2.61622]
[1717525384196,1.872,3822.6,3822.3,2.61622]
[1717525385326,2.4809,3822.5,3822.3,2.877842]
[1717525385904,2.4809,3822.5,3822.4,0.08397869]
[1717525387271,2.61631,3822.2,3821.2,2.61696]
[1717525387427,2.61631,3822.2,3821.3,0.08400287]
[1717525387631,1.872,3821.6,3821.3,0.08400287]
[1717525387829,1.872,3821.6,3821.3,0.35409916]
[1717525388340,1.872,3821.6,3821.4,0.03843404]
[1717525388543,1.872,3821.6,3821.5,0.08399847]
[1717525389022,1.872,3821.6,3821.5,0.1223963]
[1717525389954,4.2256,3821.6,3821.5,0.1223963]
[1717525391058,4.90981,3821.6,3821.5,0.1223963]
[1717525392818,4.90981,3821.6,3821.5,0.08399847]
[1717525394066,2.61695,3821.3,3820.4,2.61752]
[1717525394267,1.872,3820.8,3820.4,2.61752]
[1717525395740,1.872,3821.1,3820.6,2.61733]
[1717525396134,1.872,3821.1,3820.8,2.61723]
[1717525397767,1.872,3821.1,3820.5,2.61744]
[1717525397937,1.872,3821.1,3820.7,2.61726]
[1717525398735,7.04370604,3821.6,3821.0,2.61711]
[1717525398935,7.04370604,3821.6,3821.0,2.878821]
[1717525399341,7.04370604,3821.6,3821.1,0.03714176]
[1717525399681,1.872,3821.7,3821.1,0.03714176]
[1717525399845,1.872,3821.7,3821.2,2.61696]
[1717525400264,1.872,3821.7,3821.4,2.61682]
[1717525400667,1.872,3821.7,3821.6,2.6167]
[1717525400873,7.04370604,3822.1,3821.8,2.6165]
[1717525401383,7.04370604,3822.1,3822.0,2.61643]
[1717525401682,1.872,3822.6,3822.4,2.61614]
[1717525402483,1.872,3822.6,3822.5,0.03610023]
[1717525404287,1.872,3822.6,3822.4,2.61614]
[1717525405284,12.36,3823.2,3822.4,2.61614]
[1717525405285,19.40370604,3823.2,3822.4,2.61614]
[1717525405469,1.872,3823.0,3822.6,2.61596]
[1717525406147,1.872,3823.0,3822.8,2.61581]
[1717525406389,7.04370604,3823.2,3822.8,2.877391]
[1717525406692,7.04370604,3823.2,3823.0,2.61574]
[1717525406989,7.04370604,3823.2,3823.1,0.03570392]
[1717525407492,7.04370604,3823.2,3822.7,2.61593]
[1717525407786,1.872,3823.0,3822.8,0.03581245]
[1717525408085,1.872,3823.0,3822.4,2.61614]
[1717525408246,7.04370604,3823.2,3821.6,2.4797]
[1717525408247,8.91570604,3823.2,3821.7,5.3716]
[1717525408444,8.91570604,3823.2,3822.5,0.035921]
[1717525408665,8.91570604,3823.2,3822.9,2.61578]
[1717525408864,8.91570604,3823.2,3823.0,0.0357401]
[1717525409288,2.4093,3823.1,3823.0,0.0357401]
[1717525409503,8.91570604,3823.2,3822.7,2.61593]
[1717525409900,1.872,3822.8,3822.7,2.61593]
[1717525410073,1.872,3822.8,3822.3,2.61619]
[1717525410280,1.872,3822.8,3822.4,0.03595719]
[1717525410481,1.872,3822.8,3822.5,2.61607]
[1717525410675,1.872,3822.8,3822.7,2.61595]
[1717525410878,1.872,3823.0,3822.7,2.61595]
[1717525411578,1.872,3823.0,3822.9,2.61581]
[1717525411892,2.4093,3823.5,3822.9,2.61581]
[1717525411893,1.872,3823.4,3822.9,2.61581]
[1717525412404,7.04370604,3823.6,3822.9,2.61581]
[1717525412569,1.872,3823.4,3823.1,2.61562]
[1717525412991,1.872,3823.4,3823.3,2.61554]
[1717525413194,1.872,3823.8,3823.6,2.6153]
[1717525417118,1.872,3823.8,3823.7,2.3354]
[1717525417340,0.1278532,3823.9,3823.8,2.61519]
[1717525417522,0.1278532,3823.9,3823.8,2.65020064]
[1717525417707,0.1278532,3823.9,3823.8,5.65020064]
[1717525418710,0.1278532,3823.9,3823.8,2.65020064]
[1717525418916,0.1278532,3823.9,3823.8,2.61519]
[1717525418917,1.9998532,3823.9,3823.8,2.61519]
[1717525420530,0.1278532,3823.9,3823.8,2.61519]
[1717525420734,0.32783852,3823.9,3823.4,2.6154]
[1717525420887,0.1278532,3823.9,3823.4,2.6154]
[1717525421788,0.1278532,3823.9,3823.7,2.61522]
[1717525422225,0.1278532,3823.9,3823.8,0.0348818]
[1717525422686,0.1278532,3823.9,3823.8,0.03495721]
[1717525423024,0.1278532,3823.9,3823.8,0.26501772]
[1717525423231,0.1278532,3823.9,3823.8,0.29997493]
[1717525424333,0.1278532,3823.9,3823.8,0.03495721]
[1717525424482,0.1278532,3823.9,3823.7,2.61522]
[1717525424684,0.1278532,3823.9,3823.8,0.03495721]
[1717525424916,0.1278532,3823.9,3823.7,2.61522]
[1717525425318,0.1278532,3823.9,3823.8,0.03463351]
[1717525425633,0.1278532,3823.9,3823.8,0.26498535]
[1717525425990,0.1278532,3823.9,3823.8,0.29847886]
[1717525427284,0.1278532,3823.9,3823.8,0.03349351]
[1717525427528,0.1278532,3823.9,3823.7,2.61522]
[1717525427781,0.1278532,3823.9,3823.8,0.03349351]
[1717525428133,0.1278532,3823.9,3823.7,2.61522]
[1717525428327,0.1278532,3823.9,3823.8,0.03349351]
[1717525428533,0.1278532,3823.9,3823.7,2.61522]
[1717525428751,0.1278532,3823.9,3823.8,0.03349351]
[1717525428952,0.1278532,3823.9,3823.7,2.61522]
[1717525429252,0.1278532,3823.9,3823.8,0.03349351]
[1717525429789,0.1278532,3823.9,3823.8,0.03323899]
[1717525430689,0.1278532,3823.9,3822.6,2.61597]
[1717525430690,2.5495532,3823.9,3823.2,2.61558]
[1717525430876,2.5495532,3823.9,3823.8,0.03323899]
[1717525431050,2.80450852,3823.9,3823.2,2.61558]
[1717525431245,2.5495532,3823.9,3823.8,0.03322956]
[1717525431445,2.5495532,3823.9,3823.4,2.61541]
[1717525431683,2.5495532,3823.9,3823.8,0.03322956]
[1717525432292,2.5495532,3823.9,3823.4,2.61541]
[1717525432791,2.5495532,3823.9,3822.9,3.0]
[1717525432792,2.5495532,3823.9,3823.5,0.03333806]
[1717525433089,2.5495532,3823.9,3823.6,2.61532]
[1717525434063,0.1278532,3823.9,3823.6,2.61532]
[1717525434262,0.1278532,3823.9,3823.8,2.61519]
[1717525434592,0.1278532,3823.9,3823.8,2.64846356]
[1717525445764,0.1278532,3823.9,3823.8,5.26365356]
[1717525449277,0.1278532,3823.9,3823.8,2.64846356]
[1717525452374,0.1278532,3823.9,3823.8,5.26365356]
[1717525453203,0.1278532,3823.9,3823.8,5.79001892]
[1717525456092,0.1278532,3823.9,3823.8,11.14721892]
[1717525456295,7.08878544,3824.6,3823.8,11.14721892]
[1717525456296,0.0450794,3824.6,3823.8,11.14721892]
[1717525456527,0.0450794,3824.6,3824.5,4.48672]
[1717525456834,7.04370604,3825.0,3824.9,2.61444]
[1717525457136,12.36,3825.6,3825.5,2.61403]
[1717525457538,12.36,3825.6,3825.5,2.64529844]
[1717525457695,12.36,3825.6,3825.5,2.61403]
[1717525458813,14.6703,3825.6,3825.5,2.61403]
[1717525459842,14.6703,3825.6,3825.1,2.61428]
[1717525460355,14.6703,3825.6,3825.2,0.03102509]
[1717525460941,2.3103,3825.6,3825.2,0.03102509]
[1717525461240,2.3103,3825.6,3825.1,2.61428]
[1717525461647,2.54133,3825.6,3825.1,2.61428]
[1717525462536,2.54133,3825.6,3824.7,2.61455]
[1717525462927,2.54133,3825.6,3824.8,0.03116965]
[1717525463304,2.54133,3825.6,3824.7,2.61455]
[1717525463810,2.54133,3825.6,3824.9,2.61442]
[1717525464212,0.515525,3825.5,3824.9,2.61442]
[1717525464540,2.3103,3825.6,3824.9,2.61442]
[1717525465007,2.3103,3825.6,3825.2,2.61423]
[1717525466517,2.3103,3825.6,3825.3,0.03081304]
[1717525466741,2.3103,3825.6,3825.2,2.61423]
[1717525467116,2.3103,3825.6,3824.9,2.61444]
[1717525467316,0.23103,3825.5,3824.9,2.61444]
[1717525471045,2.3103,3825.6,3824.9,2.61444]
[1717525471197,2.3023,3826.0,3824.4,2.61478]
[1717525471398,2.3023,3826.0,3824.5,3.03107076]
[1717525472202,2.3023,3826.0,3825.6,2.61395]
[1717525472402,0.55418566,3825.9,3825.6,2.61395]
[1717525473019,0.55418566,3825.9,3825.3,2.61414]
[1717525473221,2.4486,3825.8,3825.3,2.61414]
[1717525478259,2.4486,3825.8,3825.4,0.03080204]
[1717525478758,2.4486,3825.8,3825.3,2.61414]
[1717525478956,2.4486,3825.8,3825.5,2.614]
[1717525479335,2.4486,3825.8,3825.6,0.03072978]
[1717525481337,2.4486,3825.8,3825.6,0.03072978]
[1717525482720,2.92410951,3826.2,3825.6,0.29520276]
[1717525482925,2.92410951,3826.2,3825.7,2.6139]
[1717525483324,7.04370604,3826.5,3825.9,2.61375]
[1717525483986,7.04370604,3826.5,3826.3,2.61346]
[1717525484789,7.04370604,3826.5,3826.3,2.874806]
[1717525486730,7.04370604,3826.5,3826.3,2.61346]
[1717525488541,2.4143,3826.4,3825.8,2.61379]
[1717525491072,2.4143,3826.4,3824.6,0.80590373]
[1717525491073,2.61352,3826.3,3825.3,2.61411]
[1717525491290,2.4776,3826.0,3824.8,2.61447]
[1717525491492,2.4776,3826.0,3824.9,0.261447]
[1717525491790,2.4776,3826.0,3824.9,0.29056534]
[1717525491949,2.4776,3826.0,3824.8,2.61447]
[1717525492898,2.4776,3826.0,3825.2,2.61418]
[1717525493870,2.4265,3826.4,3825.2,2.61418]
[1717525495186,15.80050205,3826.6,3825.1,2.494]
[1717525495187,12.36,3826.6,3825.1,2.494]
[1717525495595,12.36,3826.6,3826.0,2.61367]
[1717525495747,12.36,3826.6,3826.2,2.61354]
[1717525496754,12.36,3826.6,3825.2,0.54159336]
[1717525496755,4.1564,3826.4,3825.8,2.61381]
[1717525497051,12.36,3826.6,3826.2,2.6135]
[1717525497392,12.36,3826.6,3825.8,2.61381]
[1717525499154,4.89752,3826.9,3825.8,2.61381]
[1717525499155,11.94122604,3826.9,3825.8,2.61381]
[1717525499396,2.65030545,3826.8,3825.8,2.61381]
[1717525499577,11.94122604,3826.9,3825.8,2.61381]
[1717525500309,9.32810604,3826.9,3826.1,2.61358]
[1717525500807,9.32810604,3826.9,3826.4,2.61339]
[1717525500808,7.04370604,3826.9,3826.4,2.61339]
[1717525501296,7.04370604,3826.9,3826.7,2.61319]
[1717525502393,7.04370604,3826.9,3826.7,2.874509]
[1717525502578,7.04370604,3826.9,3826.7,2.61319]
[1717525503101,7.04370604,3826.9,3826.3,2.61344]
[1717525503270,2.4899,3826.8,3826.3,2.61344]
[1717525505788,2.4899,3826.8,3825.7,3.0]
[1717525505789,2.4899,3826.8,3826.0,2.61369]